fUST/lending_fUST_20250819
["ID","MTS","AMOUNT","RATE_DAILY","PERIOD"]
[380163672,1755588644936,-480.0,0.00019452,2]
[380163673,1755588645030,-480.0,0.00019452,2]
[380163674,1755588645040,-480.0,0.00019452,2]
[380163675,1755588645049,-151.0,0.00019452,2]
[380163676,1755588645059,-480.0,0.00019452,2]
[380163677,1755588645072,-682.62,0.00019452,2]
[380163678,1755588645082,-480.0,0.00019452,2]
[380163679,1755588645092,-420.0,0.00019452,2]
[380163680,1755588645102,-151.0,0.00019452,2]
[380163681,1755588645111,-492.98774424,0.00019452,2]
[380163682,1755588645121,-421.59418278,0.00019452,2]
[380163683,1755588645131,-151.0,0.00019452,2]
[380163684,1755588645140,-480.0,0.00019452,2]
[380163685,1755588645150,-480.0,0.00019452,2]
[380163686,1755588645159,-544.47114283,0.00019452,2]
[380163687,1755588645171,-823.44,0.00019452,2]
[380163688,1755588645188,-674.56,0.00019452,2]
[380163689,1755588645198,-480.0,0.00019452,2]
[380163691,1755588645207,-863.2,0.00019452,2]
[380163693,1755588645217,-480.0,0.00019452,2]
[380163695,1755588645227,-480.0,0.00019452,2]
[380163697,1755588645239,-480.0,0.00019452,2]
[380163699,1755588645248,-480.0,0.00019452,2]
[380163701,1755588645258,-875.24071,0.00019452,2]
[380163703,1755588645268,-875.24071,0.00019452,2]
[380163706,1755588645283,-480.0,0.00019452,2]
[380163708,1755588645293,-151.0,0.00019452,2]
[380163710,1755588645302,-480.0,0.00019452,2]
[380163712,1755588645312,-480.0,0.00019452,2]
[380163714,1755588645322,-480.0,0.00019452,2]
[380163716,1755588645331,-151.0,0.00019452,2]
[380163718,1755588645342,-151.0,0.00019452,2]
[380163719,1755588645354,-480.0,0.00019452,2]
[380163722,1755588645373,-151.0,0.00019452,2]
[380163724,1755588645394,-151.0,0.00019452,2]
[380163726,1755588645407,-588.17,0.00019452,2]
[380163728,1755588645417,-480.0,0.00019452,2]
[380163730,1755588645427,-151.0,0.00019452,2]
[380163732,1755588645436,-1827.22,0.00019452,2]
[380163733,1755588645446,-151.0,0.00019452,2]
[380163735,1755588645455,-442.458157,0.00019452,2]
[380163738,1755588645465,-480.0,0.00019452,2]
[380163739,1755588645474,-480.0,0.00019452,2]
[380163742,1755588645484,-151.0,0.00019452,2]
[380163744,1755588645494,-151.0,0.00019452,2]
[380163746,1755588645503,-151.0,0.00019452,2]
[380163748,1755588645512,-480.0,0.00019452,2]
[380163749,1755588645522,-480.0,0.00019452,2]
[380163752,1755588645532,-151.757454,0.00019452,2]
[380163754,1755588645542,-92.54514604,0.00019452,2]
[380163768,1755588646072,-480.0,0.00019178,2]
[380163769,1755588646082,-179.2907214,0.00019178,2]
[380163770,1755588646093,-300.7092786,0.00019178,2]
[380163771,1755588646105,-3000.0,0.000192,2]
[380163772,1755588646115,-387.45485396,0.00019452,2]
[380163773,1755588646125,-480.0,0.00019452,2]
[380163774,1755588646135,-480.0,0.00019452,2]
[380163775,1755588646145,-517.02,0.00019452,2]
[380163778,1755588646154,-577.28,0.00019452,2]
[380163780,1755588646164,-480.0,0.00019452,2]
[380163781,1755588646174,-480.0,0.00019452,2]
[380163782,1755588646183,-483.99723915,0.00019452,2]
[380163783,1755588646193,-480.0,0.00019452,2]
[380163784,1755588646202,-480.0,0.00019452,2]
[380163785,1755588646212,-480.0,0.00019452,2]
[380163786,1755588646221,-480.0,0.00019452,2]
[380163787,1755588646231,-480.0,0.00019452,2]
[380163788,1755588646240,-480.0,0.00019452,2]
[380163789,1755588646251,-151.0,0.00019452,2]
[380163790,1755588646261,-151.0,0.00019452,2]
[380163791,1755588646271,-246.714846,0.00019452,2]
[380163792,1755588646281,-314.621243,0.00019452,2]
[380163793,1755588646291,-246.714846,0.00019452,2]
[380163794,1755588646301,-151.0,0.00019452,2]
[380163795,1755588646310,-314.621243,0.00019452,2]
[380163796,1755588646320,-480.0,0.00019452,2]
[380163797,1755588646330,-480.0,0.00019452,2]
[380163798,1755588646339,-480.0,0.00019452,2]
[380163799,1755588646350,-499.53668265,0.00019452,2]
[380163800,1755588646360,-480.0,0.00019452,2]
[380163801,1755588646372,-480.0,0.00019452,2]
[380163802,1755588646382,-480.0,0.00019452,2]
[380163803,1755588646392,-801.93,0.00019452,2]
[380163804,1755588646401,-151.0,0.00019452,2]
[380163805,1755588646410,-889.7433043,0.00019452,2]
[380163809,1755588646847,-480.0,0.00019178,2]
[380163810,1755588646858,-2189.3366957,0.00019452,2]
[380163811,1755588646868,-480.0,0.00019452,2]
[380163812,1755588646878,-151.0,0.00019452,2]
[380163813,1755588646888,-1198.02,0.00019452,2]
[380163814,1755588646898,-65.74539968,0.00019452,2]
[380163815,1755588646909,-504.80460032,0.00019452,2]
[380163816,1755588646919,-480.0,0.00019452,2]
[380163817,1755588646928,-480.0,0.00019452,2]
[380163818,1755588646937,-625.64539969,0.00019452,2]
[380163819,1755588646949,-611.54460031,0.00019452,2]
[380163820,1755588646958,-5596.16,0.00019452,2]
[380163821,1755588646967,-480.0,0.00019452,2]
[380163822,1755588646976,-480.0,0.00019452,2]
[380163823,1755588646986,-1484.14,0.00019452,2]
[380163824,1755588646995,-480.0,0.00019452,2]
[380163825,1755588647005,-480.0,0.00019452,2]
[380163826,1755588647015,-480.0,0.00019452,2]
[380163827,1755588647024,-480.0,0.00019452,2]
[380163828,1755588647034,-480.0,0.00019452,2]
[380163829,1755588647043,-480.0,0.00019452,2]
[380163830,1755588647052,-480.0,0.00019452,2]
[380163831,1755588647062,-480.0,0.00019452,2]
[380163832,1755588647071,-480.0,0.00019452,2]
[380163833,1755588647080,-480.0,0.00019452,2]
[380163834,1755588647090,-480.0,0.00019452,2]
[380163835,1755588647102,-480.0,0.00019452,2]
[380163836,1755588647111,-151.0,0.00019452,2]
[380163837,1755588647121,-431.24628668,0.00019452,2]
[380163838,1755588647132,-54.57426849,0.00019452,2]
[380163839,1755588647141,-301.40638054,0.00019452,2]
[380163840,1755588647151,-480.0,0.00019452,2]
[380163841,1755588647160,-480.0,0.00019452,2]
[380163842,1755588647170,-480.0,0.00019452,2]
[380163843,1755588647179,-480.0,0.00019452,2]
[380163844,1755588647188,-480.0,0.00019452,2]
[380163845,1755588647197,-3326.55,0.00019452,2]
[380163846,1755588647206,-591.1,0.00019452,2]
[380163847,1755588647216,-765.74,0.00019452,2]
[380163848,1755588647227,-1739.34,0.00019452,2]
[380163849,1755588647236,-480.0,0.00019452,2]
[380163850,1755588647245,-480.0,0.00019452,2]
[380163851,1755588647256,-1524.2,0.00019452,2]
[380163852,1755588647266,-480.0,0.00019452,2]
[380163853,1755588647276,-1370.96,0.00019452,2]
[380163854,1755588647286,-480.0,0.00019452,2]
[380163855,1755588647296,-480.0,0.00019452,2]
[380163856,1755588647307,-480.0,0.00019452,2]
[380163857,1755588647316,-151.0,0.00019452,2]
[380163858,1755588647328,-151.0,0.00019452,2]
[380163859,1755588647337,-480.0,0.00019452,2]
[380163860,1755588647349,-563.93456255,0.00019452,2]
[380163861,1755588647361,-316.02543745,0.00019452,2]
[380163862,1755588647370,-151.0,0.00019452,2]
[380163863,1755588647380,-228.432282,0.00019452,2]
[380163864,1755588647391,-2107.91,0.00019452,2]
[380163865,1755588647401,-480.0,0.00019452,2]
[380163866,1755588647412,-593.96,0.00019452,2]
[380163867,1755588647422,-401.63691744,0.00019452,2]
[380163868,1755588647431,-480.0,0.00019452,2]
[380163869,1755588647441,-480.0,0.00019452,2]
[380163870,1755588647451,-480.0,0.00019452,2]
[380163871,1755588647461,-480.0,0.00019452,2]
[380163872,1755588647470,-151.0,0.00019452,2]
[380163873,1755588647480,-480.0,0.00019452,2]
[380163874,1755588647489,-1987.19,0.00019452,2]
[380163875,1755588647499,-480.0,0.00019452,2]
[380163876,1755588647509,-178.38991055,0.00019452,2]
[380163877,1755588647518,-480.0,0.00019452,2]
[380163878,1755588647528,-735.85,0.00019452,2]
[380163879,1755588647537,-480.0,0.00019452,2]
[380163880,1755588647546,-672.51,0.00019452,2]
[380163881,1755588647556,-1016.96,0.00019452,2]
[380163882,1755588647566,-480.0,0.00019452,2]
[380163883,1755588647576,-480.0,0.00019452,2]
[380163884,1755588647585,-480.0,0.00019452,2]
[380163885,1755588647594,-480.0,0.00019452,2]
[380163886,1755588647606,-151.004129,0.00019452,2]
[380163887,1755588647615,-1390.2,0.00019452,2]
[380163888,1755588647624,-480.0,0.00019452,2]
[380163889,1755588647634,-151.0,0.00019452,2]
[380163890,1755588647644,-480.0,0.00019452,2]
[380163891,1755588647654,-273.57296085,0.00019452,2]
[380163892,1755588647666,-146.42703915,0.00019452,2]
[380163893,1755588647675,-480.0,0.00019452,2]
[380163894,1755588647685,-480.0,0.00019452,2]
[380163895,1755588647695,-625.80042618,0.00019452,2]
[380163896,1755588647705,-480.0,0.00019452,2]
[380163898,1755588647714,-1539.06,0.00019452,2]
[380163900,1755588647724,-298.716718,0.00019452,2]
[380163901,1755588647733,-151.0,0.00019452,2]
[380163902,1755588647743,-480.0,0.00019452,2]
[380163903,1755588647753,-298.716718,0.00019452,2]
[380163904,1755588647762,-872.567638,0.00019452,2]
[380163905,1755588647771,-480.0,0.00019452,2]
[380163906,1755588647780,-480.0,0.00019452,2]
[380163907,1755588647790,-480.0,0.00019452,2]
[380163908,1755588647799,-656.03,0.00019452,2]
[380163909,1755588647813,-151.0,0.00019452,2]
[380163910,1755588647822,-460.0,0.00019452,2]
[380163911,1755588647832,-151.714163,0.00019452,2]
[380163912,1755588647842,-462.77165006,0.00019452,2]
[380163913,1755588647856,-151.0,0.00019452,2]
[380163914,1755588647866,-151.0,0.00019452,2]
[380163916,1755588647876,-36.94910255,0.00019452,2]
[380163917,1755588647888,-114.05089745,0.00019452,2]
[380163918,1755588647898,-151.0,0.00019452,2]
[380163919,1755588647908,-200.74571107,0.00019452,2]
[380163922,1755588651745,150.0,0.000189,2]
[380163938,1755589217188,250.0,0.00018878,2]
[380163951,1755589448835,160.0,0.00019,2]
[380163952,1755589449579,160.0,0.00019,2]
[380163954,1755589459911,160.0,0.00019,2]
[380163955,1755589466714,160.0,0.000278,120]
[380163956,1755589468102,160.0,0.000278,120]
[380163961,1755589505339,161.0,0.00019,2]
[380163962,1755589517099,162.92475118,0.00019,2]
[380164407,1755589626126,-287.7592482,0.00019077,2]
[380165007,1755589647235,-912.2407518,0.00019077,2]
[380165009,1755589647258,-664.0,0.00019077,2]
[380165011,1755589647280,-12.81977186,0.00019077,2]
[380165233,1755589655802,1789.1926741,0.00018977,2]
[380166494,1755589805088,1769.87833156,0.00019,30]
[380166516,1755589818889,651.76964903,0.00028767,120]
[380166546,1755589832009,-727.76760405,0.00019078,2]
[380166547,1755589832022,-1546.29546434,0.00019078,2]
[380166565,1755589837901,-63.66423888,0.00019078,2]
[380166566,1755589837912,-640.51539097,0.00019078,2]
[380166567,1755589837922,-240.02769705,0.00019078,2]
[380166568,1755589837932,-1000.0,0.00019078,2]
[380166569,1755589837942,-1200.0,0.00019161,2]
[380166570,1755589837952,-300.0,0.00019161,2]
[380166572,1755589837962,-11940.36823132,0.00019162,2]
[380166573,1755589837972,-790.0,0.00019163,2]
[380166574,1755589837981,-151.0,0.00019166,2]
[380166575,1755589837990,-421.2,0.00019168,3]
[380166576,1755589837999,-500.0,0.00019173,2]
[380166577,1755589838009,-500.0,0.00019173,2]
[380166578,1755589838019,-500.0,0.00019173,2]
[380166579,1755589838028,-500.0,0.00019173,2]
[380166581,1755589838038,-500.0,0.00019173,2]
[380166582,1755589838048,-505.93360597,0.00019173,2]
[380166583,1755589838058,-500.0,0.00019173,2]
[380166584,1755589838067,-500.0,0.00019173,2]
[380166585,1755589838076,-500.0,0.00019173,2]
[380166586,1755589838086,-500.0,0.00019173,2]
[380166587,1755589838096,-790.0,0.00019176,2]
[380166588,1755589838105,-500.0,0.00019177,2]
[380166589,1755589838114,-347.82995299,0.00019177,2]
[380166590,1755589838127,-279.96173782,0.00019177,2]
[380166591,1755589838137,-500.0,0.00019177,2]
[380166592,1755589838147,-218.68025323,0.00019177,2]
[380166594,1755589838161,-500.0,0.00019177,2]
[380166595,1755589838170,-202.09144933,0.00019177,2]
[380166596,1755589838180,-500.0,0.00019177,2]
[380166597,1755589838189,-500.0,0.00019177,2]
[380166598,1755589838199,-579.39904415,0.00019177,2]
[380166599,1755589838208,-500.0,0.00019177,2]
[380166600,1755589838218,-243.24508163,0.00019177,2]
[380166601,1755589838228,-440.0,0.00019178,2]
[380166602,1755589838238,-480.63161914,0.00019178,2]
[380166603,1755589838248,-480.0,0.00019178,2]
[380166605,1755589838358,-467.98571353,0.00019178,2]
[380166606,1755589838378,-480.0,0.00019178,2]
[380166607,1755589838387,-441.94573009,0.00019178,2]
[380166608,1755589838397,-480.0,0.00019178,2]
[380166609,1755589838407,-480.0,0.00019178,2]
[380166610,1755589838416,-480.0,0.00019178,2]
[380166611,1755589838426,-480.0,0.00019178,2]
[380166612,1755589838436,-480.0,0.00019178,2]
[380166613,1755589838446,-480.0,0.00019178,2]
[380166614,1755589838456,-277.48742346,0.00019178,2]
[380166615,1755589838466,-480.0,0.00019178,2]
[380166616,1755589838476,-480.0,0.00019178,2]
[380166617,1755589838486,-480.0,0.00019178,2]
[380166618,1755589838496,-485.22120474,0.00019178,2]
[380166619,1755589838506,-480.0,0.00019178,2]
[380166620,1755589838515,-480.94861762,0.00019178,2]
[380166621,1755589838525,-480.0,0.00019178,2]
[380166622,1755589838535,-480.0,0.00019178,2]
[380166623,1755589838545,-1000.0,0.00019178,2]
[380166625,1755589838554,-480.0,0.00019178,2]
[380166627,1755589838564,-480.0,0.00019178,2]
[380166629,1755589838574,-480.0,0.00019178,2]
[380166631,1755589838583,-483.20784292,0.00019178,2]
[380166633,1755589838592,-480.0,0.00019178,2]
[380166634,1755589838602,-480.0,0.00019178,2]
[380166635,1755589838612,-480.0,0.00019178,2]
[380166636,1755589838623,-480.0,0.00019178,2]
[380166638,1755589838632,-271.26435825,0.00019178,2]
[380166639,1755589838642,-480.0,0.00019178,2]
[380166640,1755589838652,-400.0,0.00019178,2]
[380166641,1755589838662,-480.0,0.00019178,2]
[380166642,1755589838671,-480.0,0.00019178,2]
[380166643,1755589838681,-480.0,0.00019178,2]
[380166644,1755589838691,-480.0,0.00019178,2]
[380166645,1755589838701,-480.0,0.00019178,2]
[380166646,1755589838711,-480.0,0.00019178,2]
[380166647,1755589838721,-245.04319423,0.00019178,2]
[380166648,1755589838730,-480.0,0.00019178,2]
[380166650,1755589838739,-385.0399947,0.00019178,2]
[380166651,1755589838750,-480.0,0.00019178,2]
[380166652,1755589838759,-480.0,0.00019178,2]
[380166653,1755589838769,-480.0,0.00019178,2]
[380166654,1755589838779,-420.66256802,0.00019178,2]
[380166655,1755589838789,-460.0,0.00019178,2]
[380166656,1755589838799,-536.21400313,0.00019178,2]
[380166657,1755589838809,-480.0,0.00019178,2]
[380166658,1755589838819,-480.0,0.00019178,2]
[380166659,1755589838828,-460.0,0.00019178,2]
[380166660,1755589838838,-460.0,0.00019178,2]
[380166661,1755589838848,-480.0,0.00019178,2]
[380166662,1755589838858,-480.0,0.00019178,2]
[380166663,1755589838867,-480.0,0.00019178,2]
[380166664,1755589838878,-480.0,0.00019178,2]
[380166665,1755589838888,-360.0,0.00019178,2]
[380166666,1755589838897,-480.0,0.00019178,2]
[380166667,1755589838907,-480.0,0.00019178,2]
[380166668,1755589838917,-480.0,0.00019178,2]
[380166669,1755589838926,-151.0,0.00019178,2]
[380166670,1755589838936,-480.0,0.00019178,2]
[380166671,1755589838945,-654.28,0.00019178,2]
[380166672,1755589838956,-151.0,0.00019178,2]
[380166673,1755589838965,-151.0,0.00019178,2]
[380166674,1755589838975,-460.62770357,0.00019178,2]
[380166675,1755589838985,-480.0,0.00019178,2]
[380166676,1755589838994,-151.0,0.00019178,2]
[380166677,1755589839003,-480.0,0.00019178,2]
[380166678,1755589839013,-480.0,0.00019178,2]
[380166680,1755589839022,-481.51820273,0.00019178,2]
[380166681,1755589839032,-440.0,0.00019178,2]
[380166682,1755589839042,-500.0,0.00019178,2]
[380166683,1755589839051,-480.0,0.00019178,2]
[380166684,1755589839061,-480.0,0.00019178,2]
[380166685,1755589839070,-480.0,0.00019178,2]
[380166686,1755589839080,-480.0,0.00019178,2]
[380166687,1755589839089,-441.44733662,0.00019178,2]
[380166688,1755589839099,-480.0,0.00019178,2]
[380166689,1755589839109,-480.0,0.00019178,2]
[380166690,1755589839118,-480.0,0.00019178,2]
[380166691,1755589839131,-480.0,0.00019178,2]
[380166692,1755589839141,-480.0,0.00019178,2]
[380166694,1755589839153,-157.63815913,0.00019178,2]
[380166695,1755589839165,-483.23123391,0.00019178,2]
[380166696,1755589839174,-480.48228969,0.00019178,2]
[380166697,1755589839184,-460.0,0.00019178,2]
[380166698,1755589839195,-480.0,0.00019178,2]
[380166699,1755589839205,-463.16165257,0.00019178,2]
[380166700,1755589839216,-268.0754093,0.00019178,2]
[380166701,1755589839234,-480.0,0.00019178,2]
[380166702,1755589839250,-480.0,0.00019178,2]
[380166703,1755589839263,-480.0,0.00019178,2]
[380166704,1755589839276,-480.0,0.00019178,2]
[380166705,1755589839290,-480.08441388,0.00019178,2]
[380166706,1755589839306,-480.0,0.00019178,2]
[380166707,1755589839320,-480.0,0.00019178,2]
[380166708,1755589839335,-480.0,0.00019178,2]
[380166710,1755589839350,-480.0,0.00019178,2]
[380166711,1755589839364,-480.0,0.00019178,2]
[380166712,1755589839381,-480.0,0.00019178,2]
[380166713,1755589839394,-480.0,0.00019178,2]
[380166714,1755589839408,-480.0,0.00019178,2]
[380166715,1755589839423,-460.0,0.00019178,2]
[380166716,1755589839437,-480.0,0.00019178,2]
[380166717,1755589839448,-480.0,0.00019178,2]
[380166718,1755589839462,-480.0,0.00019178,2]
[380166719,1755589839475,-480.0,0.00019178,2]
[380166720,1755589839489,-480.0,0.00019178,2]
[380166723,1755589839503,-554.70261636,0.00019178,2]
[380166726,1755589839517,-460.0,0.00019178,2]
[380166727,1755589839532,-298.45183053,0.00019178,2]
[380166728,1755589839548,-480.0,0.00019178,2]
[380166729,1755589839560,-480.0,0.00019178,2]
[380166730,1755589839572,-480.0,0.00019178,2]
[380166732,1755589839585,-480.0,0.00019178,2]
[380166733,1755589839601,-1215.82,0.00019178,2]
[380166734,1755589839616,-500.0,0.00019178,2]
[380166735,1755589839632,-500.0,0.00019178,2]
[380166736,1755589839644,-480.0,0.00019178,2]
[380166737,1755589839658,-684.81,0.00019178,2]
[380166738,1755589839670,-480.0,0.00019178,2]
[380166739,1755589839682,-480.0,0.00019178,2]
[380166740,1755589839693,-480.0,0.00019178,2]
[380166741,1755589839705,-480.0,0.00019178,2]
[380166742,1755589839717,-1193.14,0.00019178,2]
[380166743,1755589839730,-480.0,0.00019178,2]
[380166744,1755589839744,-578.44,0.00019178,2]
[380166745,1755589839757,-480.0,0.00019178,2]
[380166746,1755589839768,-480.0,0.00019178,2]
[380166748,1755589839781,-480.0,0.00019178,2]
[380166749,1755589839792,-259.25428893,0.00019178,2]
[380166750,1755589839804,-480.0,0.00019178,2]
[380166751,1755589839816,-480.0,0.00019178,2]
[380166752,1755589839828,-480.0,0.00019178,2]
[380166753,1755589839841,-480.0,0.00019178,2]
[380166754,1755589839853,-480.0,0.00019178,2]
[380166755,1755589839864,-480.0,0.00019178,2]
[380166756,1755589839877,-480.0,0.00019178,2]
[380166757,1755589839889,-440.95951233,0.00019178,2]
[380166758,1755589839901,-480.0,0.00019178,2]
[380166759,1755589839914,-502.88308508,0.00019178,2]
[380166760,1755589839926,-480.0,0.00019178,2]
[380166761,1755589839938,-480.0,0.00019178,2]
[380166762,1755589839951,-480.0,0.00019178,2]
[380166763,1755589839963,-480.0,0.00019178,2]
[380166764,1755589839974,-838.61,0.00019178,2]
[380166765,1755589839986,-480.0,0.00019178,2]
[380166766,1755589840000,-437.35334718,0.00019178,2]
[380166768,1755589840012,-480.0,0.00019178,2]
[380166770,1755589840023,-480.0,0.00019178,2]
[380166771,1755589840037,-460.0,0.00019178,2]
[380166772,1755589840049,-481.20961981,0.00019178,2]
[380166773,1755589840060,-151.0,0.00019178,2]
[380166774,1755589840073,-481.85507194,0.00019178,2]
[380166775,1755589840084,-199.23372552,0.00019178,2]
[380166776,1755589840096,-480.0,0.00019178,2]
[380166777,1755589840107,-151.0,0.00019178,2]
[380166778,1755589840119,-480.0,0.00019178,2]
[380166779,1755589840132,-151.0,0.00019178,2]
[380166780,1755589840144,-480.0,0.00019178,2]
[380166782,1755589840159,-480.0,0.00019178,2]
[380166783,1755589840171,-480.0,0.00019178,2]
[380166784,1755589840183,-151.0,0.00019178,2]
[380166785,1755589840195,-603.04155235,0.00019178,2]
[380166786,1755589840207,-480.0,0.00019178,2]
[380166787,1755589840218,-480.0,0.00019178,2]
[380166788,1755589840232,-260.130393,0.00019178,2]
[380166789,1755589840243,-151.0,0.00019178,2]
[380166790,1755589840257,-563.66,0.00019178,2]
[380166791,1755589840271,-480.0,0.00019178,2]
[380166793,1755589840283,-480.0,0.00019178,2]
[380166794,1755589840295,-480.0,0.00019178,2]
[380166795,1755589840309,-480.0,0.00019178,2]
[380166796,1755589840319,-593.43148632,0.00019178,2]
[380166797,1755589840330,-480.0,0.00019178,2]
[380166799,1755589840472,-480.0,0.00019178,2]
[380166800,1755589840491,-480.0,0.00019178,2]
[380166801,1755589840500,-701.01,0.00019178,2]
[380166802,1755589840509,-480.0,0.00019178,2]
[380166803,1755589840518,-573.23,0.00019178,2]
[380166804,1755589840528,-480.0,0.00019178,2]
[380166805,1755589840537,-461.60292893,0.00019178,2]
[380166806,1755589840547,-480.0,0.00019178,2]
[380166807,1755589840557,-480.0,0.00019178,2]
[380166808,1755589840568,-1408.24,0.00019178,2]
[380166809,1755589840579,-480.0,0.00019178,2]
[380166810,1755589840589,-878.12,0.00019178,2]
[380166811,1755589840599,-151.0,0.00019178,2]
[380166813,1755589840610,-480.0,0.00019178,2]
[380166814,1755589840619,-480.0,0.00019178,2]
[380166815,1755589840629,-480.0,0.00019178,2]
[380166816,1755589840639,-838.2,0.00019178,2]
[380166817,1755589840648,-480.0,0.00019178,2]
[380166818,1755589840657,-480.0,0.00019178,2]
[380166819,1755589840667,-836.82,0.00019178,2]
[380166820,1755589840677,-1528.12,0.00019178,2]
[380166821,1755589840686,-151.0,0.00019178,2]
[380166822,1755589840696,-151.0,0.00019178,2]
[380166823,1755589840705,-151.0,0.00019178,2]
[380166824,1755589840714,-151.0,0.00019178,2]
[380166825,1755589840725,-151.0,0.00019178,2]
[380166826,1755589840734,-151.0,0.00019178,2]
[380166827,1755589840743,-787.716639,0.00019178,2]
[380166828,1755589840753,-151.28036725,0.00019178,2]
[380166829,1755589840763,-480.0,0.00019178,2]
[380166830,1755589840772,-480.0,0.00019178,2]
[380166831,1755589840782,-151.0,0.00019178,2]
[380166832,1755589840792,-151.0,0.00019178,2]
[380166833,1755589840801,-787.716639,0.00019178,2]
[380166834,1755589840811,-480.0,0.00019178,2]
[380166835,1755589840820,-151.0,0.00019178,2]
[380166836,1755589840831,-151.0,0.00019178,2]
[380166837,1755589840840,-500.0,0.00019178,2]
[380166838,1755589840849,-500.0,0.00019178,2]
[380166839,1755589840859,-500.0,0.00019178,2]
[380166840,1755589840868,-500.0,0.00019178,2]
[380166841,1755589840880,-500.0,0.00019178,2]
[380166842,1755589840889,-500.0,0.00019178,2]
[380166843,1755589840898,-390.37045847,0.00019178,2]
[380166844,1755589840908,-151.0,0.00019178,2]
[380166845,1755589840918,-1274.07,0.00019178,2]
[380166846,1755589840927,-156.98513674,0.00019178,2]
[380166847,1755589840937,-480.0,0.00019178,2]
[380166848,1755589840946,-460.0,0.00019178,2]
[380166849,1755589840956,-151.0,0.00019178,2]
[380166850,1755589840965,-151.0,0.00019178,2]
[380166851,1755589840975,-534.31962339,0.00019178,2]
[380166853,1755589840984,-480.0,0.00019178,2]
[380166854,1755589840993,-480.0,0.00019178,2]
[380166855,1755589841003,-480.0,0.00019178,2]
[380166856,1755589841012,-480.0,0.00019178,2]
[380166857,1755589841021,-480.0,0.00019178,2]
[380166858,1755589841030,-480.0,0.00019178,2]
[380166859,1755589841040,-613.7,0.00019178,2]
[380166860,1755589841049,-480.0,0.00019178,2]
[380166861,1755589841058,-480.0,0.00019178,2]
[380166862,1755589841067,-222.043362,0.00019178,2]
[380166863,1755589841076,-283.159118,0.00019178,2]
[380166864,1755589841085,-151.0,0.00019178,2]
[380166865,1755589841094,-261.31949521,0.00019178,2]
[380166867,1755589841103,-151.0,0.00019178,2]
[380166868,1755589841113,-480.0,0.00019178,2]
[380166869,1755589841122,-222.043362,0.00019178,2]
[380166870,1755589841133,-283.159118,0.00019178,2]
[380166871,1755589841143,-151.0,0.00019178,2]
[380166872,1755589841156,-1256.72,0.00019178,2]
[380166873,1755589841166,-480.0,0.00019178,2]
[380166874,1755589841176,-480.0,0.00019178,2]
[380166875,1755589841185,-480.0,0.00019178,2]
[380166876,1755589841194,-480.0,0.00019178,2]
[380166878,1755589841204,-480.0,0.00019178,2]
[380166879,1755589841213,-480.0,0.00019178,2]
[380166880,1755589841222,-460.0,0.00019178,2]
[380166881,1755589841233,-480.0,0.00019178,2]
[380166882,1755589841243,-480.0,0.00019178,2]